Department Family,Entity,Date,Fiscal Date,Expense Type,Expense Area,Supplier,Transaction Number, AP Amount ,VAT Registration Number,Purchase Invoice Number
Department of Health,Derbyshire Healthcare NHS Foundation Trust,31/05/2022,31/05/2022,Independent Sector,IAPT,DERWENT RURAL COUNSELLING SERVICES,42199571,"174,832.54",,23830
Department of Health,Derbyshire Healthcare NHS Foundation Trust,31/05/2022,31/05/2022,Independent Sector,Acute OofA + Step Down,RUSHCLIFFE INDEPENDENT HOSPITAL,42199581,"171,600.00",,DCC33
Department of Health,Derbyshire Healthcare NHS Foundation Trust,31/05/2022,31/05/2022,Trade Local Debtors Adj,Balance Sheet,VODAFONE LTD,42205624,"71,680.24",GB 569 9532 77,100935519
Department of Health,Derbyshire Healthcare NHS Foundation Trust,31/05/2022,31/05/2022,Legal Fees,Chief Executive's Office,CARE QUALITY COMMISSION,42221573,"119,280.00",GB 948043217,43121737
Department of Health,Derbyshire Healthcare NHS Foundation Trust,31/05/2022,31/05/2022,Agency Admin & Clerical,Temporary Staff Control,SERVICE CARE SOLUTIONS LTD,42226627,"35,888.95",853479002,WK5SCS2223
Department of Health,Derbyshire Healthcare NHS Foundation Trust,31/05/2022,31/05/2022,Agency Admin & Clerical,Temporary Staff Control,THORNBURY NURSING SERVICES,42226630,"152,386.27",GB676285493,WK5THO2223
Department of Health,Derbyshire Healthcare NHS Foundation Trust,31/05/2022,31/05/2022,Speciality Training - ST2,CountyS Training Grades,ST HELENS & KNOWSLEY HOSPITALS NHS TRUST,42246832,"50,000.00",654943996,16813030
Department of Health,Derbyshire Healthcare NHS Foundation Trust,31/05/2022,31/05/2022,Independent Sector,Derby Substance Misuse,PHOENIX HOUSE,42259026,"95,793.00",,114241
Department of Health,Derbyshire Healthcare NHS Foundation Trust,31/05/2022,31/05/2022,Independent Sector,DerbyshireSubstanceMisuse,PHOENIX HOUSE,42259030,"203,672.75",,114242
Department of Health,Derbyshire Healthcare NHS Foundation Trust,31/05/2022,31/05/2022,Stocks Finished Goods,Balance Sheet,JANSSEN CILAG LTD,42262542,"66,439.34",207929448,930837874
Department of Health,Derbyshire Healthcare NHS Foundation Trust,31/05/2022,31/05/2022,Computer Maintenance,IT Infrastructure,DICTATE IT LTD,42275445,"30,000.00",835575990,SIN02911
Department of Health,Derbyshire Healthcare NHS Foundation Trust,31/05/2022,31/05/2022,Training Expenses,People Serv Senior Team,THE POWER OF STAFF NETWORKS,42293783,"29,500.00",,364
Department of Health,Derbyshire Healthcare NHS Foundation Trust,31/05/2022,31/05/2022,Income tax - Current,Balance Sheet,INLAND REVENUE CIS,42296599,"1,251,466.91",,507PX001657472301
Department of Health,Derbyshire Healthcare NHS Foundation Trust,31/05/2022,31/05/2022,National Insurance - Curr,Balance Sheet,INLAND REVENUE CIS,42296599,"1,626,170.01",,507PX001657472301
Department of Health,Derbyshire Healthcare NHS Foundation Trust,31/05/2022,31/05/2022,Agency Admin & Clerical,Temporary Staff Control,ASPECT HEALTHCARE LTD,42303230,"25,173.79",GB 323 975 876,WK6ASP2223
Department of Health,Derbyshire Healthcare NHS Foundation Trust,31/05/2022,31/05/2022,Agency Admin & Clerical,Temporary Staff Control,ATHONA LTD,42303234,"33,497.40",GB848352111,WK6ATH2223
Department of Health,Derbyshire Healthcare NHS Foundation Trust,31/05/2022,31/05/2022,Agency Admin & Clerical,Temporary Staff Control,INTERACT MEDICAL,42303242,"27,310.93",650778024,WK6INT2223
Department of Health,Derbyshire Healthcare NHS Foundation Trust,31/05/2022,31/05/2022,Agency Admin & Clerical,Temporary Staff Control,SERVICE CARE SOLUTIONS LTD,42303256,"35,087.13",853479002,WK6SCS2223
Department of Health,Derbyshire Healthcare NHS Foundation Trust,31/05/2022,31/05/2022,Agency Admin & Clerical,Temporary Staff Control,THORNBURY NURSING SERVICES,42303260,"149,404.33",GB676285493,WK6THO2223
Department of Health,Derbyshire Healthcare NHS Foundation Trust,31/05/2022,31/05/2022,AUC Additions,Balance Sheet,INTEGRATED HEALTH PROJECTS,42318745,"57,429.26",830007284,22050003
Department of Health,Derbyshire Healthcare NHS Foundation Trust,31/05/2022,31/05/2022,Computer Hardware Purch,IT Infrastructure,DELL CORPORATION LTD,42352407,"77,868.00",635823528,7402808917
Department of Health,Derbyshire Healthcare NHS Foundation Trust,31/05/2022,31/05/2022,Computer Hardware Purch,IT Infrastructure,DELL CORPORATION LTD,42352408,"38,934.00",635823528,7402808918
Department of Health,Derbyshire Healthcare NHS Foundation Trust,31/05/2022,31/05/2022,AUC Additions,Balance Sheet,INTEGRATED HEALTH PROJECTS,42358145,"54,592.18",830007284,22050004
Department of Health,Derbyshire Healthcare NHS Foundation Trust,31/05/2022,31/05/2022,AUC Additions,Balance Sheet,KIER CONSTRUCTION - SCOTLAND & NORTH EAST,42358159,"29,629.72",671545721,10286641
Department of Health,Derbyshire Healthcare NHS Foundation Trust,31/05/2022,31/05/2022,Bldg Ctrcts - PFI Svc Chg,Kingsway PFI,ARDEN PARTNERSHIP (DERBY) LTD,42361647,"99,453.80",911330964,SI0178
Department of Health,Derbyshire Healthcare NHS Foundation Trust,31/05/2022,31/05/2022,Contingent rents,BTL,ARDEN PARTNERSHIP (DERBY) LTD,42361647,"86,158.33",911330964,SI0178
Department of Health,Derbyshire Healthcare NHS Foundation Trust,31/05/2022,31/05/2022,Finance Lease & HP NCurr,Balance Sheet,ARDEN PARTNERSHIP (DERBY) LTD,42361647,"76,753.00",911330964,SI0178
Department of Health,Derbyshire Healthcare NHS Foundation Trust,31/05/2022,31/05/2022,Interest Payable,BTL,ARDEN PARTNERSHIP (DERBY) LTD,42361647,"91,960.09",911330964,SI0178
Department of Health,Derbyshire Healthcare NHS Foundation Trust,31/05/2022,31/05/2022,Othr Prepay&AccrIncmNCurr,Balance Sheet,ARDEN PARTNERSHIP (DERBY) LTD,42361647,"46,889.00",911330964,SI0178
Department of Health,Derbyshire Healthcare NHS Foundation Trust,31/05/2022,31/05/2022,Agency Admin & Clerical,Temporary Staff Control,SERVICE CARE SOLUTIONS LTD,42401235,"26,162.87",853479002,WK7SCS2223
Department of Health,Derbyshire Healthcare NHS Foundation Trust,31/05/2022,31/05/2022,Agency Admin & Clerical,Temporary Staff Control,THORNBURY NURSING SERVICES,42401236,"44,005.23",GB676285493,WK7THO2223
Department of Health,Derbyshire Healthcare NHS Foundation Trust,31/05/2022,31/05/2022,Independent Sector,DerbyshireSubstanceMisuse,DERBYSHIRE ALCOHOL ADVICE SERVICE,42431600,"46,599.00",,20222303
Department of Health,Derbyshire Healthcare NHS Foundation Trust,31/05/2022,31/05/2022,Agency Admin & Clerical,Temporary Staff Control,SERVICE CARE SOLUTIONS LTD,42479689,"41,066.32",853479002,WK8SCS2223
Department of Health,Derbyshire Healthcare NHS Foundation Trust,31/05/2022,31/05/2022,Independent Sector,MH Helpline + Support Srvs,P3,42498357,"49,530.00",,INVS015285
Department of Health,Derbyshire Healthcare NHS Foundation Trust,31/05/2022,31/05/2022,Independent Sector,MH Helpline + Support Srvs,P3,42498361,"49,530.00",,INVS015286
